bitfinex/quotes_BTCUSD_20230106
["timestamp","ask_amount","ask_price","bid_price","bid_amount"]
[1672992877977,0.74323578,16807.0,16806.0,1.21234246]
[1672992878321,1.10030293,16807.0,16806.0,1.21234246]
[1672992878773,0.92177441,16807.0,16806.0,1.21234246]
[1672992881397,1.10027728,16807.0,16806.0,1.21234246]
[1672992881652,0.74321013,16807.0,16806.0,1.21234246]
[1672992882173,0.74321013,16807.0,16806.0,1.80736746]
[1672992882438,0.47550187,16807.0,16806.0,1.80736746]
[1672992882695,0.74321013,16807.0,16806.0,1.80736746]
[1672992884889,0.74321013,16807.0,16806.0,2.40239246]
[1672992885142,0.47550187,16807.0,16806.0,2.40239246]
[1672992885931,0.74321013,16807.0,16806.0,2.40239246]
[1672992887205,0.47550187,16807.0,16806.0,2.40239246]
[1672992887460,0.74321013,16807.0,16806.0,2.40239246]
[1672992888224,0.74321013,16807.0,16806.0,2.02801268]
[1672992896865,0.47550187,16807.0,16806.0,2.92801268]
[1672992897097,0.47550187,16807.0,16806.0,3.10650589]
[1672992900885,0.47550187,16807.0,16806.0,2.80650589]
[1672992901142,0.74321013,16807.0,16806.0,2.62801268]
[1672992901390,0.74321013,16807.0,16806.0,2.03298768]
[1672992901917,0.73228813,16807.0,16806.0,2.03298768]
[1672992902972,0.73228813,16807.0,16806.0,2.33298768]
[1672992903701,0.73228813,16807.0,16806.0,2.92801268]
[1672992903992,0.73228813,16807.0,16806.0,3.0665093]
[1672992904734,0.73228813,16807.0,16806.0,2.92801268]
[1672992905224,0.73228813,16807.0,16806.0,2.62801268]
[1672992907435,0.91085241,16807.0,16806.0,2.62801268]
[1672992907687,1.08941291,16807.0,16806.0,2.62801268]
[1672992907934,0.73234576,16807.0,16806.0,2.62801268]
[1672992910222,0.73234576,16807.0,16806.0,2.92801268]
[1672992912680,0.73234576,16807.0,16806.0,3.01979663]
[1672992913695,0.4646375,16807.0,16806.0,2.92801268]
[1672992915283,0.4646375,16807.0,16806.0,2.63651268]
[1672992918524,0.4646375,16807.0,16806.0,2.81500589]
[1672992919262,0.286077,16807.0,16806.0,3.41709493]
[1672992922610,0.286077,16807.0,16806.0,3.71709493]
[1672992923111,0.286077,16807.0,16806.0,4.31077972]
[1672992925723,0.286077,16807.0,16806.0,4.57851953]
[1672992927068,0.286077,16807.0,16806.0,4.31077972]
[1672992930833,0.286077,16807.0,16806.0,5.30174485]
[1672992931348,0.286077,16807.0,16806.0,5.3017436]
[1672992931591,0.286077,16807.0,16806.0,4.57851953]
[1672992931835,0.286077,16807.0,16806.0,5.30198069]
[1672992932841,0.286077,16807.0,16806.0,6.02547158]
[1672992935413,0.286077,16807.0,16806.0,6.02190164]
[1672992936152,0.286077,16807.0,16806.0,6.021713]
[1672992937911,0.286077,16807.0,16806.0,6.02167439]
[1672992939156,0.286077,16807.0,16806.0,5.4279896]
[1672992939784,0.286077,16807.0,16806.0,4.70472596]
[1672992940849,0.286077,16807.0,16806.0,5.42820072]
[1672992947070,0.286077,16807.0,16806.0,5.84743513]
[1672992947071,0.280377,16807.0,16806.0,5.84743513]
[1672992947849,0.280377,16807.0,16806.0,5.24534609]
[1672992948103,0.280377,16807.0,16806.0,5.83922322]
[1672992948418,0.280377,16807.0,16806.0,5.78278167]
[1672992948614,0.280377,16807.0,16806.0,5.96109261]
[1672992948862,0.280377,16807.0,16806.0,6.61792556]
[1672992949902,0.280377,16807.0,16806.0,5.96109261]
[1672992954060,0.274677,16807.0,16806.0,5.60411141]
[1672992954832,0.274677,16807.0,16806.0,13.10411141]
[1672992956189,0.268977,16807.0,16806.0,13.10411141]
[1672992958946,0.268977,16807.0,16806.0,5.96074227]
[1672992961450,0.268977,16807.0,16806.0,5.60411141]
[1672992962936,0.268977,16807.0,16806.0,13.10411141]
[1672992968766,0.268977,16807.0,16806.0,12.65806066]
[1672992969519,0.268977,16807.0,16806.0,6.00072787]
[1672992970056,0.268977,16807.0,16806.0,6.35731264]
[1672992970843,0.268977,16807.0,16806.0,6.65731264]
[1672992971070,0.268977,16807.0,16806.0,6.47908546]
[1672992972336,0.268977,16807.0,16806.0,6.92475832]
[1672992972640,0.268977,16807.0,16806.0,6.47908546]
[1672992978692,0.268977,16807.0,16806.0,6.65731264]
[1672992979985,0.26886414,16807.0,16806.0,6.65731264]
[1672992980371,0.26886414,16807.0,16806.0,5.96031829]
[1672992980520,0.26886414,16807.0,16806.0,5.60373352]
[1672992985570,0.26886414,16807.0,16806.0,5.15806066]
[1672992988289,0.26886414,16807.0,16806.0,5.7326326]
[1672992992714,0.26886414,16807.0,16806.0,5.15806066]
[1672992994513,0.26886414,16807.0,16806.0,12.65806066]
[1672992996729,0.26886414,16807.0,16806.0,11.9345995]
[1672993000407,0.268785,16807.0,16806.0,11.9345995]
[1672993000689,0.268785,16807.0,16806.0,13.39072475]
[1672993001183,0.00630598,16808.0,16807.0,0.76772427]
[1672993001436,0.00630598,16808.0,16807.0,4.43354793]
[1672993001697,0.00630598,16808.0,16807.0,5.62352793]
[1672993003000,0.00060598,16808.0,16807.0,5.72504302]
[1672993003337,0.00060598,16808.0,16807.0,5.27901892]
[1672993003804,0.00060598,16808.0,16807.0,5.41901892]
[1672993004620,0.00060598,16808.0,16807.0,5.86494218]
[1672993007228,0.00060598,16808.0,16807.0,5.41901892]
[1672993007429,0.00453865,16809.0,16808.0,0.80721696]
[1672993007676,0.00453865,16809.0,16808.0,4.43397762]
[1672993007940,0.00453865,16809.0,16808.0,5.93238562]
[1672993008193,0.00453865,16809.0,16808.0,5.75403199]
[1672993008446,0.00453865,16809.0,16808.0,5.04716898]
[1672993008957,0.00453865,16809.0,16808.0,5.75698777]
[1672993009212,0.00453865,16809.0,16808.0,5.18816898]
[1672993009734,0.00453865,16809.0,16808.0,5.04716898]
[1672993009980,0.00453865,16809.0,16808.0,5.18616898]
[1672993010944,0.00453865,16809.0,16808.0,5.04716898]
[1672993011224,0.00453865,16809.0,16808.0,5.84044512]
[1672993011467,0.00453865,16809.0,16808.0,5.60734898]
[1672993011713,0.00453865,16809.0,16808.0,5.74634898]
[1672993011955,0.00453865,16809.0,16808.0,5.74640898]
[1672993012219,0.00453865,16809.0,16808.0,5.18622898]
[1672993013236,0.00127476,16810.0,16809.0,1.08438358]
[1672993013498,0.00127476,16810.0,16809.0,3.15655657]
[1672993013717,0.00127476,16810.0,16809.0,4.34639457]
[1672993014648,0.00127476,16810.0,16809.0,4.48539457]
[1672993015129,0.00127476,16810.0,16809.0,4.49389457]
[1672993016636,0.00127476,16810.0,16809.0,4.76136051]
[1672993016887,0.00127476,16810.0,16809.0,4.49395457]
[1672993017139,0.00127476,16810.0,16809.0,4.76142051]
[1672993017923,0.45305113,16812.0,16810.0,1.12000099]
[1672993018187,0.45305113,16812.0,16811.0,1.7068481]
[1672993018413,0.45305113,16812.0,16811.0,2.51908372]
[1672993019147,0.45305113,16812.0,16811.0,3.11393172]
[1672993019395,0.44735113,16812.0,16811.0,3.11393172]
[1672993019648,0.17949287,16812.0,16811.0,3.11393172]
[1672993019913,0.44720113,16812.0,16811.0,3.11393172]
[1672993020150,0.44720113,16812.0,16811.0,2.81399172]
[1672993020404,0.44720113,16812.0,16811.0,2.95499172]
[1672993021431,0.44720113,16812.0,16811.0,2.96349172]
[1672993021925,0.44720113,16812.0,16811.0,3.26349172]
[1672993022184,0.44720113,16812.0,16811.0,2.96349172]
[1672993022980,0.44720113,16812.0,16811.0,3.26349172]
[1672993025114,0.44720113,16812.0,16811.0,3.26343172]
[1672993025625,0.17949287,16812.0,16811.0,3.26343172]
[1672993027557,0.17949287,16812.0,16811.0,2.96343172]
[1672993027819,0.44720113,16812.0,16811.0,2.96343172]
[1672993029155,0.17949287,16812.0,16811.0,3.26343172]
[1672993030471,0.44720113,16812.0,16811.0,3.26343172]
[1672993036302,0.17949287,16812.0,16811.0,3.26343172]
[1672993036544,0.44720113,16812.0,16811.0,3.26343172]
[1672993038591,0.44720113,16812.0,16811.0,2.96343172]
[1672993038810,0.62570778,16812.0,16811.0,2.36858372]
[1672993041571,1.07182916,16812.0,16811.0,2.36848766]
[1672993042342,0.62570778,16812.0,16811.0,2.36848766]
[1672993043135,0.62570778,16812.0,16811.0,2.66848766]
[1672993043896,0.62570778,16812.0,16811.0,3.26333566]
[1672993044213,0.62570778,16812.0,16811.0,2.66848766]
[1672993045176,0.62570778,16812.0,16811.0,2.36848766]
[1672993045426,0.62570778,16812.0,16811.0,3.26333566]
[1672993045667,0.62570778,16812.0,16811.0,2.66848766]
[1672993046420,0.62570778,16812.0,16811.0,2.36848766]
[1672993047161,0.62570778,16812.0,16811.0,2.66848766]
[1672993047685,0.62570778,16812.0,16811.0,3.26333566]
[1672993048193,0.62570778,16812.0,16811.0,2.66848766]
[1672993050774,0.62570778,16812.0,16811.0,2.36848766]
[1672993052279,0.62570778,16812.0,16811.0,2.66848766]
[1672993052758,0.62570778,16812.0,16811.0,2.36848766]
[1672993053311,0.62570778,16812.0,16811.0,2.66848766]
[1672993053564,0.62570778,16812.0,16811.0,2.36838236]
[1672993055874,0.17945125,16812.0,16811.0,3.26323036]
[1672993056130,0.44715951,16812.0,16811.0,3.26323036]
[1672993056353,0.44715951,16812.0,16811.0,10.76323036]
[1672993056901,0.17945125,16812.0,16811.0,10.76323036]
[1672993057381,0.17945125,16812.0,16811.0,3.26323036]
[1672993062339,0.17945125,16812.0,16811.0,3.44152622]
[1672993062600,0.17945125,16812.0,16811.0,3.26323036]
[1672993063656,0.00093237,16812.0,16811.0,3.26323036]
[1672993065221,0.44622714,16813.0,16812.0,1.689626]
[1672993065482,0.17851888,16813.0,16812.0,3.58729186]
[1672993066208,0.17851888,16813.0,16812.0,3.65829186]
[1672993066704,0.17851888,16813.0,16812.0,3.05653458]
[1672993067460,0.17851888,16813.0,16812.0,3.06503458]
[1672993067690,0.17851888,16813.0,16812.0,3.66679186]
[1672993067910,0.17851888,16813.0,16812.0,3.06503458]
[1672993068446,0.44622714,16813.0,16812.0,2.36193679]
[1672993069508,0.17851888,16813.0,16812.0,2.66193679]
[1672993070274,0.44622714,16813.0,16812.0,2.36193679]
[1672993071292,0.44622714,16813.0,16812.0,2.66199679]
[1672993072031,0.44622714,16813.0,16812.0,2.36199679]
[1672993072283,0.44622714,16813.0,16812.0,2.17404554]
[1672993074373,0.17851888,16813.0,16812.0,3.06885854]
[1672993075895,0.17851888,16813.0,16812.0,3.67061582]
[1672993076208,0.17851888,16813.0,16812.0,3.06885854]
[1672993076359,0.17851888,16813.0,16812.0,3.06879854]
[1672993077409,0.17851888,16813.0,16812.0,3.67055582]
[1672993077652,0.17851888,16813.0,16812.0,3.06879854]
[1672993081090,0.17851888,16813.0,16812.0,3.67055582]
[1672993081345,0.17851888,16813.0,16812.0,3.06879854]
[1672993081598,0.44622714,16813.0,16812.0,2.36193679]
[1672993082370,0.17851888,16813.0,16812.0,2.66193679]
[1672993082657,0.17851888,16813.0,16812.0,2.36193679]
[1672993082915,0.17851888,16813.0,16812.0,2.66193679]
[1672993083432,0.17851888,16813.0,16812.0,2.93156621]
[1672993083733,0.44622714,16813.0,16812.0,2.03675321]
[1672993083969,0.44622714,16813.0,16812.0,1.76712379]
[1672993087330,0.44622714,16813.0,16812.0,2.06712379]
[1672993087822,0.44622714,16813.0,16812.0,1.76712379]
[1672993088900,0.44622714,16813.0,16812.0,1.76704591]
[1672993089878,0.80051133,16813.0,16812.0,1.76704591]
[1672993090162,0.80051133,16813.0,16812.0,1.26712379]
[1672993090665,0.44622714,16813.0,16812.0,1.62398584]
[1672993092311,0.44622714,16813.0,16812.0,1.26712379]
[1672993093882,0.80051133,16813.0,16812.0,1.26712379]
[1672993094160,0.44622714,16813.0,16812.0,1.26712379]
[1672993095726,0.80051133,16813.0,16812.0,1.56712379]
[1672993096247,0.44622714,16813.0,16812.0,2.76369407]
[1672993096792,0.44622714,16813.0,16812.0,3.22856024]
[1672993097003,0.44622714,16813.0,16812.0,3.82856024]
[1672993098547,0.44622714,16813.0,16812.0,3.36369407]
[1672993101489,0.44622714,16813.0,16812.0,2.76193679]
[1672993103402,0.44622714,16813.0,16812.0,3.36369407]
[1672993103576,0.17851888,16813.0,16812.0,3.36369407]
[1672993103829,0.44622714,16813.0,16812.0,3.36369407]
[1672993104652,0.17851888,16813.0,16812.0,3.36369407]
[1672993104883,0.17851888,16813.0,16812.0,3.51980039]
[1672993105400,0.17281888,16813.0,16812.0,3.51980039]
[1672993105658,0.17281888,16813.0,16812.0,3.69809625]
[1672993105927,0.17281888,16813.0,16812.0,3.51980039]
[1672993106185,0.17281888,16813.0,16812.0,3.69809625]
[1672993106959,0.17281888,16813.0,16812.0,3.49626884]
[1672993108023,0.27310444,16814.0,16812.0,3.59477351]
[1672993108278,0.27310444,16814.0,16813.0,1.5085]
[1672993108604,0.62738863,16814.0,16813.0,2.41360435]
[1672993109565,0.27910444,16814.0,16813.0,3.58457639]
[1672993110340,0.27910444,16814.0,16813.0,3.58257639]
[1672993110341,0.27310444,16814.0,16813.0,3.58257639]
[1672993110598,0.62738863,16814.0,16813.0,3.72257639]
[1672993110852,0.62738863,16814.0,16813.0,3.28257639]
[1672993111196,0.62738863,16814.0,16813.0,3.42257639]
[1672993111379,0.62738863,16814.0,16813.0,3.72257639]
[1672993111635,0.62738863,16814.0,16813.0,3.42257639]
[1672993112368,0.27310444,16814.0,16813.0,3.72257639]
[1672993112886,0.62738863,16814.0,16813.0,3.42257639]
[1672993113934,0.62738863,16814.0,16813.0,3.72257639]
[1672993114187,0.27310444,16814.0,16813.0,3.72257639]
[1672993114448,0.27310444,16814.0,16813.0,3.72263639]
[1672993114710,0.64563728,16815.0,16813.0,3.72263639]
[1672993115015,1.09175866,16815.0,16814.0,0.37226364]
[1672993115225,0.64563728,16815.0,16814.0,0.37226364]
[1672993115479,0.64563728,16815.0,16814.0,0.594742]
[1672993116247,0.64563728,16815.0,16814.0,0.894742]
[1672993116498,0.63993728,16815.0,16814.0,1.335742]
[1672993116770,0.63993728,16815.0,16814.0,2.22693818]
[1672993117027,0.81834897,16815.0,16814.0,2.22693818]
[1672993117249,0.46406478,16815.0,16814.0,1.32693818]
[1672993117549,0.63993728,16815.0,16814.0,0.73219618]
[1672993117808,0.63993728,16815.0,16814.0,2.27105613]
[1672993118610,0.63993728,16815.0,16814.0,2.27955613]
[1672993119671,0.19092726,16815.0,16814.0,3.75448283]
[1672993119923,0.01254865,16815.0,16814.0,3.75448283]
[1672993122417,0.01254865,16815.0,16814.0,2.83024018]
[1672993122707,0.01254865,16815.0,16814.0,3.41103243]
[1672993123728,0.01254865,16815.0,16814.0,3.41097243]
[1672993124024,0.00684865,16815.0,16814.0,3.61097243]
[1672993124279,0.00684865,16815.0,16814.0,4.20041299]
[1672993124540,0.00684865,16815.0,16814.0,4.00041299]
[1672993125589,0.00684865,16815.0,16814.0,4.20041299]
[1672993130562,0.00684865,16815.0,16814.0,3.61962074]
[1672993130817,0.00684865,16815.0,16814.0,4.19229215]
[1672993132658,0.00684865,16815.0,16814.0,4.19221114]
[1672993133971,0.00684865,16815.0,16814.0,3.61962074]
[1672993134230,0.00684865,16815.0,16814.0,4.19203141]
[1672993145565,0.00684865,16815.0,16814.0,4.22205002]
[1672993146655,0.00684865,16815.0,16814.0,4.40034588]
[1672993147185,0.00684865,16815.0,16814.0,3.81090532]
[1672993149814,0.00684865,16815.0,16814.0,3.63260946]
[1672993150064,0.00684865,16815.0,16814.0,3.60259085]
[1672993153395,0.00684865,16815.0,16814.0,3.03018018]
[1672993153903,0.00684865,16815.0,16814.0,3.62601416]
[1672993154228,0.00684865,16815.0,16814.0,3.59683878]
[1672993154904,0.00684865,16815.0,16814.0,4.19256306]
[1672993157683,0.00684865,16815.0,16814.0,4.37085892]
[1672993161273,0.18522726,16815.0,16814.0,4.37085892]
[1672993162037,0.00684865,16815.0,16814.0,4.37085892]
[1672993162492,0.00684865,16815.0,16814.0,4.63832486]
[1672993162753,0.00684865,16815.0,16814.0,5.79656539]
[1672993163009,0.00684865,16815.0,16814.0,5.79644604]
[1672993163242,0.00684865,16815.0,16814.0,5.61826953]
[1672993163468,0.00684865,16815.0,16814.0,5.43977228]
[1672993164415,0.00684865,16815.0,16814.0,5.79642793]
[1672993164888,0.00684865,16815.0,16814.0,5.15072082]
[1672993165112,0.00684865,16815.0,16814.0,4.97255638]
[1672993165333,0.00684865,16815.0,16814.0,5.15070598]
[1672993165594,0.00684865,16815.0,16814.0,5.79550672]
[1672993166112,0.00684865,16815.0,16814.0,5.61735712]
[1672993166384,0.00684865,16815.0,16814.0,5.43885331]
[1672993168951,0.00684865,16815.0,16814.0,5.79550896]
[1672993169243,0.00684865,16815.0,16814.0,5.43885331]
[1672993169772,0.00684865,16815.0,16814.0,4.6917854]
[1672993170288,0.00684865,16815.0,16814.0,5.44066147]
[1672993170826,0.00684865,16815.0,16814.0,4.6917854]
[1672993171082,0.00684865,16815.0,16814.0,5.44084459]
[1672993171356,0.02394865,16816.0,16814.0,6.0143149]
[1672993171611,0.02394865,16816.0,16815.0,5.14841487]
[1672993172166,0.02394865,16816.0,16815.0,6.73551612]
[1672993172432,0.02394865,16816.0,16815.0,6.86387972]
[1672993173715,0.02394865,16816.0,16815.0,6.68579957]
[1672993173972,0.02394865,16816.0,16815.0,6.98579957]
[1672993174751,0.02394865,16816.0,16815.0,7.12479957]
[1672993174990,0.02394865,16816.0,16815.0,6.98579957]
[1672993175533,0.02394865,16816.0,16815.0,7.12479957]
[1672993175802,0.02394865,16816.0,16815.0,7.12485957]
[1672993176358,0.02394865,16816.0,16815.0,7.90296602]
[1672993176622,0.02394865,16816.0,16815.0,8.17011464]
[1672993176870,0.02394865,16816.0,16815.0,7.57011464]
[1672993180994,0.02394865,16816.0,16815.0,7.57005464]
[1672993182032,0.02394865,16816.0,16815.0,7.39194819]
[1672993183060,0.20232726,16816.0,16815.0,7.10702769]
[1672993183314,0.77085412,16816.0,16815.0,3.52449589]
[1672993183574,1.21418634,16816.0,16815.0,2.92978889]
[1672993183847,0.46977294,16816.0,16815.0,2.92978889]
[1672993184110,0.46977294,16816.0,16815.0,4.59651827]
[1672993184372,0.2023463,16816.0,16815.0,5.19122527]
[1672993184627,0.2023463,16816.0,16815.0,5.49122527]
[1672993185166,0.2023463,16816.0,16815.0,4.88946799]
[1672993185419,0.2023463,16816.0,16815.0,5.49122527]
[1672993196021,0.02394865,16816.0,16815.0,5.49122527]
[1672993196296,0.2023463,16816.0,16815.0,5.49122527]
[1672993200710,0.02394865,16816.0,16815.0,5.49122527]
[1672993201233,0.02394865,16816.0,16815.0,5.66933172]
[1672993201491,0.02394865,16816.0,16815.0,5.66693172]
[1672993202014,0.02394865,16816.0,16815.0,5.19666662]
[1672993202266,0.2023463,16816.0,16815.0,5.19666662]
[1672993202794,0.02394865,16816.0,16815.0,5.19666662]
[1672993203569,0.2023463,16816.0,16815.0,5.01856017]
[1672993203827,0.46977294,16816.0,16815.0,4.41680289]
[1672993204091,0.46977294,16816.0,16815.0,4.11680289]
[1672993204358,0.46977294,16816.0,16815.0,3.52209589]
[1672993204611,0.64565948,16816.0,16815.0,3.52209589]
[1672993204868,0.46981723,16816.0,16815.0,3.52209589]
[1672993205122,0.46981723,16816.0,16815.0,4.2183549]
[1672993205386,0.46981723,16816.0,16815.0,4.12385317]
[1672993205886,0.46981723,16816.0,16815.0,4.42385317]
[1672993206677,0.46981723,16816.0,16815.0,3.52209589]
[1672993207704,0.82410142,16816.0,16815.0,3.52209589]
[1672993207964,0.46981723,16816.0,16815.0,3.52209589]
[1672993208261,0.46981723,16816.0,16815.0,5.6124373]
[1672993208484,0.46981723,16816.0,16815.0,3.52209589]
[1672993209008,0.46981723,16816.0,16815.0,2.92738889]
[1672993209009,0.64565948,16816.0,16815.0,2.92738889]
[1672993212621,0.64565948,16816.0,16815.0,3.52209589]
[1672993212834,0.64565948,16816.0,16815.0,4.11680289]
[1672993213334,0.64565948,16816.0,16815.0,3.52209589]
[1672993215667,0.82403453,16816.0,16815.0,3.52209589]
[1672993216382,0.46975034,16816.0,16815.0,3.52209589]
[1672993218112,0.82403453,16816.0,16815.0,3.52209589]
[1672993218367,0.64565948,16816.0,16815.0,3.52209589]
[1672993219354,0.64565948,16816.0,16815.0,4.71856017]
[1672993219626,0.8240472,16816.0,16815.0,4.71856017]
[1672993219883,0.64565948,16816.0,16815.0,4.71856017]
[1672993220132,0.46976262,16816.0,16815.0,4.71856017]
[1672993221136,0.46976262,16816.0,16815.0,5.01856017]
[1672993221393,0.46976262,16816.0,16815.0,4.41680289]
[1672993221631,0.46976262,16816.0,16815.0,5.01856017]
[1672993223400,0.46976262,16816.0,16815.0,4.71856017]
[1672993223906,0.46976262,16816.0,16815.0,5.61856017]
[1672993224917,0.46976262,16816.0,16815.0,5.31856017]
[1672993225920,0.46976262,16816.0,16815.0,4.71680289]
[1672993226434,0.82404681,16816.0,16815.0,4.71680289]
[1672993226682,0.82406469,16816.0,16815.0,4.99980273]
[1672993226927,0.64565948,16816.0,16815.0,4.99980273]
[1672993227422,0.64565948,16816.0,16815.0,4.12209589]
[1672993229959,0.82406542,16816.0,16815.0,4.72385317]
[1672993230210,0.64565948,16816.0,16815.0,4.12209589]
[1672993232946,0.64565948,16816.0,16815.0,4.72385317]
[1672993233445,0.64565948,16816.0,16815.0,4.12209589]
[1672993236217,0.82408473,16816.0,16815.0,4.12209589]
[1672993236987,0.64565948,16816.0,16815.0,4.12209589]
[1672993245118,0.64565948,16816.0,16815.0,4.42209589]
[1672993245352,0.64565948,16816.0,16815.0,4.12209589]
[1672993247924,0.64565948,16816.0,16815.0,4.42209589]
[1672993248176,0.64565948,16816.0,16815.0,4.12209589]
[1672993250081,1.09178086,16816.0,16815.0,4.12209589]
[1672993250873,0.82435422,16816.0,16815.0,4.12209589]
[1672993253103,1.09210302,16816.0,16815.0,4.12209589]
[1672993253357,0.64598164,16816.0,16815.0,4.12209589]
[1672993253871,1.09210302,16816.0,16815.0,4.72385317]
[1672993254145,1.09210302,16816.0,16815.0,4.12209589]
[1672993255400,0.82435422,16816.0,16815.0,4.12209589]
[1672993255651,1.09210606,16816.0,16815.0,4.12209589]
[1672993255903,1.09210661,16816.0,16815.0,4.12209589]
[1672993256184,0.64598523,16816.0,16815.0,4.12209589]
[1672993256681,0.64598523,16816.0,16815.0,4.42209589]
[1672993257203,0.64598523,16816.0,16815.0,4.72385317]
[1672993257447,0.64598523,16816.0,16815.0,4.12209589]
[1672993257681,0.64598523,16816.0,16815.0,4.72385317]
[1672993258400,0.64598523,16816.0,16815.0,4.12209589]
[1672993258629,0.82435422,16816.0,16815.0,4.12209589]
[1672993259391,1.41133177,16816.0,16815.0,2.22970164]
[1672993259910,0.96521039,16816.0,16815.0,2.22963682]
[1672993260167,1.41148964,16816.0,16815.0,2.22963682]
[1672993260422,0.81556928,16816.0,16815.0,2.22963682]
[1672993260679,1.26184903,16816.0,16815.0,2.22963682]
[1672993261472,0.81556928,16816.0,16815.0,2.22324882]
[1672993261709,0.60489822,16816.0,16815.0,2.22324882]
[1672993265128,0.74246171,16816.0,16815.0,2.22324882]
[1672993265431,0.93035633,16816.0,16815.0,2.22324882]
[1672993265633,1.54202133,16816.0,16815.0,2.22324882]
[1672993271344,2.8286011,16816.0,16815.0,2.22324882]
[1672993271626,3.36447352,16816.0,16815.0,2.22324882]
[1672993271885,2.8286011,16816.0,16815.0,2.22324882]
[1672993272130,3.36370864,16816.0,16815.0,2.22324882]
[1672993272650,2.75204364,16816.0,16815.0,2.08424882]
[1672993272918,2.75204364,16816.0,16815.0,2.22524882]
[1672993272919,3.36470864,16816.0,16815.0,2.22524882]
[1672993276009,3.17681402,16816.0,16815.0,2.22524882]
[1672993276266,2.64170648,16816.0,16815.0,2.22524882]
[1672993281134,2.64170648,16816.0,16815.0,2.33110908]
[1672993281654,1.43537048,16816.0,16815.0,2.33110908]
[1672993285221,1.88077907,16816.0,16815.0,2.33110908]
[1672993285710,1.43537048,16816.0,16815.0,2.33104866]
[1672993286673,1.75194929,16816.0,16815.0,2.33104866]
[1672993286927,2.35370657,16816.0,16815.0,2.33104866]
[1672993287180,2.96537157,16816.0,16815.0,2.33104866]
[1672993288171,2.64879276,16816.0,16815.0,2.33104866]
[1672993288746,2.49248372,16816.0,16815.0,2.33104866]
[1672993288998,2.49248372,16816.0,16815.0,0.25536026]
[1672993289258,3.094241,16816.0,16815.0,0.25536026]
[1672993289511,2.64879276,16816.0,16815.0,0.25536026]
[1672993289766,2.64789317,16816.0,16815.0,0.25536026]
[1672993295579,3.08572345,16816.0,16815.0,0.25536026]
[1672993296858,3.62083099,16816.0,16815.0,0.25536026]
[1672993297361,4.21550199,16816.0,16815.0,0.25536026]
[1672993297606,3.61374471,16816.0,16815.0,0.25536026]
[1672993297871,4.21550199,16816.0,16815.0,0.25536026]
[1672993298627,3.62083099,16816.0,16815.0,0.25536026]
[1672993298879,3.18300071,16816.0,16815.0,0.25536026]
[1672993304673,3.77767171,16816.0,16815.0,0.25536026]
[1672993306020,3.18300071,16816.0,16815.0,0.25536026]
[1672993313936,3.77767171,16816.0,16815.0,0.25536026]
[1672993314459,3.7406805,16816.0,16815.0,0.25536026]
[1672993314715,3.7406805,16816.0,16815.0,0.2552535]
[1672993316816,3.24256417,16816.0,16815.0,0.2552535]
[1672993317060,2.64789317,16816.0,16815.0,0.2552535]
[1672993317850,3.24256417,16816.0,16815.0,0.2552535]
[1672993328599,2.63089917,16816.0,16815.0,0.2552535]
[1672993332684,3.16639228,16816.0,16815.0,0.2552535]
[1672993332931,3.77805728,16816.0,16815.0,0.2552535]
[1672993333170,4.21504626,16816.0,16815.0,0.2552535]
[1672993335931,3.67955315,16816.0,16815.0,0.2552535]
[1672993337456,3.62039159,16816.0,16815.0,0.2552535]
[1672993338483,4.21506259,16816.0,16815.0,0.2552535]
[1672993339488,4.21506259,16816.0,16815.0,0.25513565]
[1672993339799,3.62039159,16816.0,16815.0,0.25513565]
[1672993341058,3.01863431,16816.0,16815.0,0.25513565]
[1672993341306,3.00872659,16816.0,16815.0,0.25513565]
[1672993341566,3.62039159,16816.0,16815.0,0.25513565]
[1672993345003,3.01863431,16816.0,16815.0,0.25513565]
[1672993345199,2.40696931,16816.0,16815.0,0.25513565]
[1672993346263,3.00872659,16816.0,16815.0,0.25513565]
[1672993346501,2.40696931,16816.0,16815.0,0.25513565]
[1672993346760,3.00872659,16816.0,16815.0,0.25513565]
[1672993347264,2.40696931,16816.0,16815.0,0.25513565]
[1672993354473,1.81229831,16816.0,16815.0,0.25513565]
[1672993354737,1.37530933,16816.0,16815.0,0.25513565]
[1672993355254,1.96998033,16816.0,16815.0,0.25513565]
[1672993356057,2.58164533,16816.0,16815.0,0.25513565]
[1672993359646,3.18340261,16816.0,16815.0,0.25513565]
[1672993359900,3.24256417,16816.0,16815.0,0.25513565]
[1672993360154,3.68717004,16816.0,16815.0,0.25513565]
[1672993362026,3.68717004,16816.0,16815.0,0.25502572]
[1672993370747,2.49074176,16816.0,16815.0,0.25502572]
[1672993371304,1.87907676,16816.0,16815.0,0.25502572]
[1672993371847,2.41455087,16816.0,16815.0,0.25502572]
[1672993372220,3.02621587,16816.0,16815.0,0.25502572]
[1672993374393,2.41455087,16816.0,16815.0,0.25502572]
[1672993374678,3.02621587,16816.0,16815.0,0.25502572]
[1672993376671,2.41455087,16816.0,16815.0,0.25502572]
[1672993378922,2.41455087,16816.0,16815.0,0.85502572]
[1672993379693,1.969945,16816.0,16815.0,0.85502572]
[1672993381095,1.969945,16816.0,16815.0,0.25502572]
[1672993381240,1.43447089,16816.0,16815.0,0.25502572]
[1672993382751,1.969914,16816.0,16815.0,0.25502572]
[1672993383546,1.969914,16816.0,16815.0,0.25494183]
[1672993383797,2.34672206,16816.0,16815.0,0.25494183]
[1672993384048,2.95838706,16816.0,16815.0,0.25494183]
[1672993385049,2.42294395,16816.0,16815.0,0.25494183]
[1672993385540,2.95838674,16816.0,16815.0,0.25494183]
[1672993385791,2.42294395,16816.0,16815.0,0.25494183]
[1672993386029,2.95838704,16816.0,16815.0,0.25494183]
[1672993386283,3.56015035,16816.0,16815.0,0.25494183]
[1672993386807,2.95839276,16816.0,16815.0,0.25494183]
[1672993387064,2.42294395,16816.0,16815.0,0.25494183]
[1672993387388,3.02470123,16816.0,16815.0,0.25494183]
[1672993387600,4.15481171,16816.0,16815.0,0.25494183]
[1672993387864,4.15481793,16816.0,16815.0,0.25494183]
[1672993388112,3.61937223,16816.0,16815.0,0.25494183]
[1672993389661,3.02470123,16816.0,16815.0,0.25494183]
[1672993390457,3.61937223,16816.0,16815.0,0.25494183]
[1672993393215,3.01761495,16816.0,16815.0,0.25494183]
[1672993393464,3.61937223,16816.0,16815.0,0.25494183]
[1672993393720,3.61937223,16816.0,16815.0,0.24686026]
[1672993397181,3.61937223,16816.0,16815.0,0.25536026]
[1672993399445,3.01761495,16816.0,16815.0,0.25536026]
[1672993400268,3.55305639,16816.0,16815.0,0.25536026]
[1672993401278,2.94139139,16816.0,16815.0,0.25536026]
[1672993402327,3.55305639,16816.0,16815.0,0.25536026]
[1672993403343,3.01761495,16816.0,16815.0,0.25536026]
[1672993403621,2.40594995,16816.0,16815.0,0.25536026]
[1672993403859,2.34671898,16816.0,16815.0,0.25536026]
[1672993407988,2.34671898,16816.0,16815.0,0.25528617]
[1672993408214,2.94138998,16816.0,16815.0,0.25528617]
[1672993409231,2.34671898,16816.0,16815.0,0.25528617]
[1672993410255,2.94847626,16816.0,16815.0,0.25528617]
[1672993410512,2.34671898,16816.0,16815.0,0.25528617]
[1672993410758,1.81127895,16816.0,16815.0,0.25528617]
[1672993411009,2.34675086,16816.0,16815.0,0.25528617]